Service area,Service sub division,TVBC Service,Expense type,Detailed expense type,TVBC account code,Date Paid,Transaction Reference, Nett Value ,Supplier Name
Central Services to the Public,Elections,Legal & Democratic,Premises related Expenditure,Rents,Premises Hire,18/05/2017,214225,500,The Oak
Planning & Development,Economic Development,Estates and Economic Development ,Supplies & Services,Grants & Subscriptions,Grants,17/05/2017,214169,500,Inz.Pired Ltd
Central Services to the Public,Elections,Legal & Democratic,Premises related Expenditure,Rents,Premises Hire,18/05/2017,214226,500,Chilbolton Village Hall
Central Services to the Public,Elections,Legal & Democratic,Premises related Expenditure,Rents,Premises Hire,18/05/2017,214301,500,Romsey Town Council
Central Services to the Public,Elections,Legal & Democratic,Premises related Expenditure,Rents,Premises Hire,18/05/2017,214309,500,Thruxton War Memorial Hall
Planning & Development,Community Development,Community and Leisure ,Supplies & Services,Grants & Subscriptions,Grants,04/05/2017,213543,500,Test Valley Cab
Planning & Development,Community Development,Community and Leisure ,Supplies & Services,Grants & Subscriptions,Grants,11/05/2017,213881,500,Fyfield Parish Council
Cultural & Related,Open Spaces,Environmental,Transport Related Expenditure,Direct Transport Costs,Petrol,25/05/2017,214748,422.03,Fuel Card Services Ltd
Environmental & Regulatory,"Cemetery, Cremation and Mortuary Services",Community and Leisure ,Premises related Expenditure,Grounds Maintenance Costs,Gm - Additional Works,31/05/2017,214254,424.25,Thorveton Stone Company Ltd
Environmental & Regulatory,Waste management,Environmental,Supplies & Services,Services,Training Courses,18/05/2017,213391,445,By-Pass Driver Training
Cultural & Related,Open Spaces,Environmental,Supplies & Services,"Equipment, Furniture & Materials",Purchases for playgrounds,25/05/2017,214697,427.34,Atf Supplies Nationwide Ltd
"Highways, Roads & Transport",Highways and roads - maintenance,Plan Pol & Transport,Supplies & Services,"Equipment, Furniture & Materials",Purchase Equip + Materials,04/05/2017,213426,427.56,Sse Contracting Ltd
Housing Services,Homelessness,Housing and Environmental Health ,Supplies & Services,Miscellaneous Expenses,Bed & Breakfast,18/05/2017,213764,525,Cabin B & B
Housing Services,Homelessness,Housing and Environmental Health ,Supplies & Services,Miscellaneous Expenses,Bed & Breakfast,25/05/2017,214200,525,Cabin B & B
Housing Services,Homelessness,Housing and Environmental Health ,Supplies & Services,Miscellaneous Expenses,Bed & Breakfast,25/05/2017,214933,525,Cabin B & B
Housing Services,Homelessness,Housing and Environmental Health ,Supplies & Services,Miscellaneous Expenses,Bed & Breakfast,25/05/2017,214934,525,Cabin B & B
Central Services to the Public,Management & Support Services,Legal & Democratic,Supplies & Services,Services,Legal Fees,04/05/2017,213274,447,Davitt Jones Bould
Central Services to the Public,Management & Support Services,Estates and Economic Development ,Supplies & Services,"Equipment, Furniture & Materials",Purchase Materials (Job Cost),18/05/2017,214423,448.5,Whiffaway Ltd
Central Services to the Public,Management & Support Services,Legal & Democratic,Employees,Indirect Employee Expenses,Temporary Staff,25/05/2017,214707,450,Cognize Consultancy Limited
Cultural & Related,Open Spaces,Environmental,Supplies & Services,Miscellaneous Expenses,Waste Collection,25/05/2017,214412,450.88,Raymond Brown Minerals & Recycling Ltd
Cultural & Related,Culture & Heritage,Community and Leisure ,Supplies & Services,Miscellaneous Expenses,Riders For Performers,11/05/2017,213376,31.05,Brake Bros Ltd
Cultural & Related,Culture & Heritage,Community and Leisure ,Premises related Expenditure,Cleaning and domestic supplies,Cleaning Materials-Purchases,11/05/2017,213376,12.02,Brake Bros Ltd
Cultural & Related,Culture & Heritage,Community and Leisure ,Supplies & Services,Catering,Caf�/ bar consumables,11/05/2017,213376,15.73,Brake Bros Ltd
Cultural & Related,Culture & Heritage,Community and Leisure ,Supplies & Services,Catering,Non-Contract Catering,11/05/2017,213376,343.75,Brake Bros Ltd
Cultural & Related,Culture & Heritage,Community and Leisure ,Supplies & Services,Catering,Caf� Catering supplies,11/05/2017,213376,69.03,Brake Bros Ltd
Environmental & Regulatory,Regulatory Services,Housing and Environmental Health ,Supplies & Services,Services,Project Consultancy - Policy,18/05/2017,214201,458.24,Als Environmental Ltd
Cultural & Related,Open Spaces,Environmental,Supplies & Services,Communications & Computing,Mobile Telephone Charges,25/05/2017,214308,126.12,Vodafone Limited
Environmental & Regulatory,Street Cleansing (not chargeable to Highways),Environmental,Supplies & Services,Communications & Computing,Mobile Telephone Charges,25/05/2017,214308,141.97,Vodafone Limited
Environmental & Regulatory,Waste management,Environmental,Supplies & Services,Communications & Computing,Mobile Telephone Charges,25/05/2017,214308,133.59,Vodafone Limited
Central Services to the Public,Management & Support Services,Environmental,Supplies & Services,Communications & Computing,Mobile Telephone Charges,25/05/2017,214308,26.49,Vodafone Limited
Central Services to the Public,Management & Support Services,Environmental,Supplies & Services,Communications & Computing,Mobile Telephone Charges,25/05/2017,214308,37.44,Vodafone Limited
Cultural & Related,Culture & Heritage,Community and Leisure ,Supplies & Services,"Equipment, Furniture & Materials",Purchase Equip + Materials,18/05/2017,214413,468,Office Reality Ltd
External Trading Accounts,Business Parks,Estates and Economic Development ,Premises related Expenditure,Grounds Maintenance Costs,Grounds Maintenance Contracts,25/05/2017,214899,473.19,Landmarks Sustainability Ltd
Environmental & Regulatory,Waste management,Environmental,Transport Related Expenditure,Direct Transport Costs,Repair Materials,04/05/2017,213279,483.12,Dennis Eagle Ltd
Central Services to the Public,Management & Support Services,Environmental,Transport Related Expenditure,Direct Transport Costs,Repair Materials,04/05/2017,213271,483.85,Pitter Commercials Ltd
Planning & Development,Building Control,Planning & Building,Supplies & Services,Services,Professional Fees,25/05/2017,214695,484.28,Barron & Partners
Cultural & Related,Culture & Heritage,Estates and Economic Development ,Supplies & Services,Miscellaneous Expenses,Waste Collection,11/05/2017,213838,145.38,Suez Recycling And Recovery Uk Ltd
Central Services to the Public,Management & Support Services,Estates and Economic Development ,Supplies & Services,Miscellaneous Expenses,Waste Collection,11/05/2017,213838,341.78,Suez Recycling And Recovery Uk Ltd
Central Services to the Public,Elections,Legal & Democratic,Supplies & Services,"Printing, Stationery & General Office Expenses",Postage Costs,25/05/2017,214455,594.86,Financial Data Management Plc
Cultural & Related,Open Spaces,Community and Leisure ,Supplies & Services,"Equipment, Furniture & Materials",Purchase Equip + Materials,18/05/2017,213282,500,Evergreen Rabbit Control
Central Services to the Public,Local Tax Collection,Revenues,Supplies & Services,Services,External Training Consultants,24/05/2017,214725,500,Airey Consultancy Services Ltd
Central Services to the Public,Management & Support Services,Housing and Environmental Health ,Supplies & Services,Grants & Subscriptions,Subscriptions,25/05/2017,214791,500,Hampshire County Council
Central Services to the Public,Management & Support Services,Environmental,Transport Related Expenditure,Direct Transport Costs,Repair Materials,25/05/2017,214731,503.17,Dennis Eagle Ltd
Cultural & Related,Open Spaces,Environmental,Supplies & Services,"Equipment, Furniture & Materials",Purchase Equip + Materials,11/05/2017,211776,504.12,Rigby Taylor Ltd
Planning & Development,Development Control,Planning & Building,Supplies & Services,Communications & Computing,Blackberry Charges,25/05/2017,214311,12.5,Vodafone Limited
Planning & Development,Planning Policy,Plan Pol & Transport,Supplies & Services,Communications & Computing,Blackberry Charges,25/05/2017,214311,50,Vodafone Limited
"Highways, Roads & Transport",Highways and roads - maintenance,Plan Pol & Transport,Supplies & Services,Communications & Computing,Blackberry Charges,25/05/2017,214311,20,Vodafone Limited
"Highways, Roads & Transport",Highways and roads - maintenance,Plan Pol & Transport,Supplies & Services,Communications & Computing,Communication Links,25/05/2017,214311,10,Vodafone Limited
"Highways, Roads & Transport",Highways and roads - maintenance,Plan Pol & Transport,Supplies & Services,Communications & Computing,Mobile Telephone Charges,25/05/2017,214311,3.3,Vodafone Limited
"Highways, Roads & Transport",Parking Services,Plan Pol & Transport,Supplies & Services,Communications & Computing,Mobile Telephone Charges,25/05/2017,214311,179,Vodafone Limited
"Highways, Roads & Transport",Parking Services,Plan Pol & Transport,Supplies & Services,Communications & Computing,Mobile Telephone Charges,25/05/2017,214311,229.49,Vodafone Limited
Central Services to the Public,Local Tax Collection,Revenues,Supplies & Services,"Printing, Stationery & General Office Expenses",Postage Costs,04/05/2017,213528,22.14,Royal Mail
Central Services to the Public,Local Tax Collection,Revenues,Supplies & Services,"Printing, Stationery & General Office Expenses",Postage Costs,04/05/2017,213528,250.02,Royal Mail
Housing Services,Housing Benefits ,Revenues,Supplies & Services,"Printing, Stationery & General Office Expenses",Postage Costs,04/05/2017,213528,116.11,Royal Mail
Central Services to the Public,Local Tax Collection,Revenues,Supplies & Services,"Printing, Stationery & General Office Expenses",Postage Costs,04/05/2017,213528,116.1,Royal Mail
Planning & Development,Development Control,Planning & Building,Supplies & Services,Communications & Computing,Blackberry Charges,11/05/2017,212830,12.5,Vodafone Limited
Planning & Development,Planning Policy,Plan Pol & Transport,Supplies & Services,Communications & Computing,Blackberry Charges,11/05/2017,212830,50,Vodafone Limited
"Highways, Roads & Transport",Highways and roads - maintenance,Plan Pol & Transport,Supplies & Services,Communications & Computing,Blackberry Charges,11/05/2017,212830,20,Vodafone Limited
"Highways, Roads & Transport",Highways and roads - maintenance,Plan Pol & Transport,Supplies & Services,Communications & Computing,Communication Links,11/05/2017,212830,10,Vodafone Limited
"Highways, Roads & Transport",Highways and roads - maintenance,Plan Pol & Transport,Supplies & Services,Communications & Computing,Mobile Telephone Charges,11/05/2017,212830,7.91,Vodafone Limited
"Highways, Roads & Transport",Parking Services,Plan Pol & Transport,Supplies & Services,Communications & Computing,Mobile Telephone Charges,11/05/2017,212830,67.86,Vodafone Limited
"Highways, Roads & Transport",Parking Services,Plan Pol & Transport,Supplies & Services,Communications & Computing,Mobile Telephone Charges,11/05/2017,212830,344.76,Vodafone Limited
Central Services to the Public,Management & Support Services,Estates and Economic Development ,Transport Related Expenditure,Direct Transport Costs,Repair Materials,04/05/2017,213270,11.1,M D Services
Environmental & Regulatory,Regulatory Services,Estates and Economic Development ,Transport Related Expenditure,Direct Transport Costs,Repair Materials,04/05/2017,213270,4.45,M D Services
Environmental & Regulatory,Regulatory Services,Housing and Environmental Health ,Transport Related Expenditure,Direct Transport Costs,Repair Materials,04/05/2017,213270,4.42,M D Services
Environmental & Regulatory,Regulatory Services,Housing and Environmental Health ,Transport Related Expenditure,Direct Transport Costs,Repair Materials,04/05/2017,213270,4.46,M D Services
Environmental & Regulatory,Community Development,Community and Leisure ,Transport Related Expenditure,Direct Transport Costs,Repair Materials,04/05/2017,213270,4.45,M D Services
"Highways, Roads & Transport",Parking Services,Plan Pol & Transport,Transport Related Expenditure,Direct Transport Costs,Repair Materials,04/05/2017,213270,4.46,M D Services
Cultural & Related,Open Spaces,Environmental,Transport Related Expenditure,Direct Transport Costs,Repair Materials,04/05/2017,213270,86.58,M D Services
Environmental & Regulatory,Street Cleansing (not chargeable to Highways),Environmental,Transport Related Expenditure,Direct Transport Costs,Repair Materials,04/05/2017,213270,51.06,M D Services
Environmental & Regulatory,Waste management,Environmental,Transport Related Expenditure,Direct Transport Costs,Repair Materials,04/05/2017,213270,37.74,M D Services
Environmental & Regulatory,Waste management,Environmental,Transport Related Expenditure,Direct Transport Costs,Repair Materials,04/05/2017,213270,6.62,M D Services
Central Services to the Public,Management & Support Services,Environmental,Transport Related Expenditure,Direct Transport Costs,Workshop Consumables,04/05/2017,213270,91.7,M D Services
Central Services to the Public,Management & Support Services,Environmental,Transport Related Expenditure,Direct Transport Costs,Repair Materials,04/05/2017,213270,195.86,M D Services
Central Services to the Public,Management & Support Services,Environmental,Transport Related Expenditure,Direct Transport Costs,Repair Materials,04/05/2017,213270,6.66,M D Services
External Trading Accounts,Business Parks,Estates and Economic Development ,Supplies & Services,Communications & Computing,Land Line Telephone Charges,11/05/2017,213846,28.03,Virgin Media Payments Ltd
Cultural & Related,Culture & Heritage,Estates and Economic Development ,Supplies & Services,Communications & Computing,Land Line Telephone Charges,11/05/2017,213846,39.58,Virgin Media Payments Ltd
Cultural & Related,Culture & Heritage,Estates and Economic Development ,Supplies & Services,Communications & Computing,Land Line Telephone Charges,11/05/2017,213846,40.5,Virgin Media Payments Ltd
Central Services to the Public,Management & Support Services,IT,Supplies & Services,Communications & Computing,Communication Links,11/05/2017,213846,26,Virgin Media Payments Ltd
Central Services to the Public,Management & Support Services,IT,Supplies & Services,Communications & Computing,Communication Links,11/05/2017,213846,67,Virgin Media Payments Ltd
Cultural & Related,Recreation & Sport,Community and Leisure ,Supplies & Services,Communications & Computing,Land Line Telephone Charges,11/05/2017,213846,26,Virgin Media Payments Ltd
Cultural & Related,Recreation & Sport,Community and Leisure ,Supplies & Services,Communications & Computing,Land Line Telephone Charges,11/05/2017,213846,13.44,Virgin Media Payments Ltd
Cultural & Related,Recreation & Sport,Community and Leisure ,Supplies & Services,Communications & Computing,Land Line Telephone Charges,11/05/2017,213846,13,Virgin Media Payments Ltd
Cultural & Related,Culture & Heritage,Community and Leisure ,Supplies & Services,Communications & Computing,Communication Links,11/05/2017,213846,74.26,Virgin Media Payments Ltd
"Highways, Roads & Transport",Parking Services,Plan Pol & Transport,Supplies & Services,Communications & Computing,Alarm Lines,11/05/2017,213846,37.16,Virgin Media Payments Ltd
Central Services to the Public,Management & Support Services,Environmental,Supplies & Services,Communications & Computing,Land Line Telephone Charges,11/05/2017,213846,66.38,Virgin Media Payments Ltd
Central Services to the Public,Emergency Planning,Corporate & Democratic,Supplies & Services,Communications & Computing,Land Line Telephone Charges,11/05/2017,213846,91,Virgin Media Payments Ltd
Cultural & Related,Culture & Heritage,Community and Leisure ,Supplies & Services,Catering,Non-Contract Catering,25/05/2017,214415,539.6,Carlsberg Uk Ltd
Central Services to the Public,Management & Support Services,Finance,Supplies & Services,"Printing, Stationery & General Office Expenses",Written Media,25/05/2017,215052,540,Cipfa
Environmental & Regulatory,Street Cleansing (not chargeable to Highways),Environmental,Supplies & Services,Services,Training Courses,04/05/2017,213286,540,Premier Safety Services Ltd
Cultural & Related,Open Spaces,Environmental,Supplies & Services,Miscellaneous Expenses,Advertising,11/05/2017,213382,276.5,Newsquest Media Group Ltd
Environmental & Regulatory,Street Cleansing (not chargeable to Highways),Environmental,Supplies & Services,Miscellaneous Expenses,Advertising,11/05/2017,213382,276.5,Newsquest Media Group Ltd
Planning & Development,Planning Policy,Plan Pol & Transport,Supplies & Services,"Printing, Stationery & General Office Expenses",Photocopying Costs,25/05/2017,214785,555.13,Ricoh Uk Ltd
Cultural & Related,Culture & Heritage,Community and Leisure ,Supplies & Services,Catering,Non-Contract Catering,25/05/2017,214206,558.94,Carlsberg Uk Ltd
External Trading Accounts,Business Parks,Estates and Economic Development ,Premises related Expenditure,Repairs Alterations & Maintenance of Buildings,Planned Maintenance - Non Est,25/05/2017,214891,560,Alarms & Electrical (Devizes) Ltd
Central Services to the Public,Management & Support Services,Estates and Economic Development ,Premises related Expenditure,Repairs Alterations & Maintenance of Buildings,Planned Maintenance - Non Est,04/05/2017,213379,566.66,Btu Installation & Maintenance Ltd
Central Services to the Public,Management & Support Services,Estates and Economic Development ,Premises related Expenditure,Energy Costs,Gas,04/05/2017,213310,567.99,Total Gas & Power Ltd
Central Services to the Public,Elections,Legal & Democratic,Supplies & Services,"Equipment, Furniture & Materials",Equipment Hire,11/05/2017,213727,682.5,Swift Hire (South & South East) Ltd
Cultural & Related,Open Spaces,Environmental,Third Party Payments,Other Establishments,Private Contractors,11/05/2017,213842,689.89,Ivan Gibson Agricultural Contractor
Central Services to the Public,Local Tax Collection,Revenues,Supplies & Services,Services,Professional Fees,11/05/2017,213831,"-3,004.02",Rossendales
Central Services to the Public,Local Tax Collection,Revenues,Supplies & Services,Services,Professional Fees,11/05/2017,213831,"3,079.02",Rossendales
Cultural & Related,Open Spaces,Environmental,Supplies & Services,"Equipment, Furniture & Materials",Purchase Equip + Materials,25/05/2017,214927,580.57,W H Berry & Son
Central Services to the Public,Management & Support Services,Environmental,Transport Related Expenditure,Direct Transport Costs,Workshop Consumables,11/05/2017,213825,262.53,M D Services
Central Services to the Public,Management & Support Services,Environmental,Transport Related Expenditure,Direct Transport Costs,Repair Materials,11/05/2017,213825,328.64,M D Services
Environmental & Regulatory,Waste management,Environmental,Transport Related Expenditure,Direct Transport Costs,Repair Materials,18/05/2017,213835,594.85,Dennis Eagle Ltd
Cultural & Related,Culture & Heritage,Community and Leisure ,Supplies & Services,Catering,Non-Contract Catering,25/05/2017,215006,596.24,Carlsberg Uk Ltd
External Trading Accounts,Business Parks,Estates and Economic Development ,Premises related Expenditure,Rents,Rents,04/05/2017,213315,597.49,Langdown Estates Llp
Central Services to the Public,Management & Support Services,Plan Pol & Transport,Premises related Expenditure,Repairs Alterations & Maintenance of Buildings,General Repairs,25/05/2017,214414,600,Purbeck Civil Engineering Limited
External Trading Accounts,Business Parks,Estates and Economic Development ,Supplies & Services,Miscellaneous Expenses,Waste Collection,11/05/2017,213490,615.9,Basingstoke Skip Hire & Sthrn Waste Mgt Ltd
Planning & Development,Economic Development,Estates and Economic Development ,Supplies & Services,Grants & Subscriptions,Grants,31/05/2017,215398,750,Personal data - Data Protection Act 1998
Cultural & Related,Open Spaces,Community and Leisure ,Premises related Expenditure,Grounds Maintenance Costs,Gm - Additional Works,04/05/2017,213402,625,Purbeck Civil Engineering Limited
Planning & Development,Economic Development,Estates and Economic Development ,Supplies & Services,Grants & Subscriptions,Grants,03/05/2017,213429,750,Totcity
Environmental & Regulatory,Waste management,Environmental,Transport Related Expenditure,Direct Transport Costs,Repair Materials,04/05/2017,212980,626.1,Dennis Eagle Ltd
Environmental & Regulatory,Regulatory Services,Housing and Environmental Health ,Supplies & Services,Grants and subscriptions,Capital Grants,25/05/2017,215024,783,Epw Construction
Planning & Development,Community Development,Community and Leisure ,Supplies & Services,Grants & Subscriptions,Grants,31/05/2017,215411,800,St Paul'S Church & Community Centre
Central Services to the Public,Elections,Legal & Democratic,Premises related Expenditure,Rents,Premises Hire,18/05/2017,214290,800,The Elim Church Andover
Central Services to the Public,Management & Support Services,Revenues,Supplies & Services,Services,Training Courses,04/05/2017,213323,800,Sparsholt College Hampshire
Environmental & Regulatory,Waste management,Environmental,Employees,Indirect Employee Expenses,Agency Staff - Waged Posts,11/05/2017,213806,691.88,Gi Group Recruitment Ltd
Environmental & Regulatory,Waste management,Environmental,Transport Related Expenditure,Direct Transport Costs,External Garages,11/05/2017,213827,702,Trash Uk Limited
Central Services to the Public,Management & Support Services,Finance,Supplies & Services,"Printing, Stationery & General Office Expenses",Postage Costs,18/05/2017,214043,706.73,Whistl Uk Ltd
Central Services to the Public,Management & Support Services,Estates and Economic Development ,Third Party Payments,Other Establishments,Private Contractors,11/05/2017,213839,707,Sovereign Joinery Products Ltd
Central Services to the Public,Management & Support Services,Environmental,Transport Related Expenditure,Direct Transport Costs,Repair Materials,18/05/2017,213760,718.65,Terberg Matec Uk Limited
Central Services to the Public,Management & Support Services,IT,Supplies & Services,Communications & Computing,Computer Hardware,25/05/2017,214779,733,Nce Computer Group (Europe) Ltd
Central Services to the Public,Management & Support Services,IT,Supplies & Services,"Equipment, Furniture & Materials",Maintenance Equip + Materials,25/05/2017,214203,740.62,Quadrant Security Group Ltd
Cultural & Related,Culture & Heritage,Community and Leisure ,Supplies & Services,Catering,Caf�/ bar consumables,18/05/2017,213503,12.71,Carlsberg Uk Ltd
Cultural & Related,Culture & Heritage,Community and Leisure ,Supplies & Services,Catering,Non-Contract Catering,18/05/2017,213503,729.4,Carlsberg Uk Ltd
Cultural & Related,Tourism,Estates and Economic Development ,Supplies & Services,Miscellaneous Expenses,Promotions / Special Events,24/05/2017,212986,750,Apl Media Ltd
Environmental & Regulatory,Community Development,Community and Leisure ,Supplies & Services,"Equipment, Furniture & Materials",Equipment Lease Rentals,04/05/2017,213327,750,De Lage Landen Leasing Ltd
Central Services to the Public,Local Tax Collection,Revenues,Supplies & Services,Services,Professional Fees,04/05/2017,213328,33.76,Ross & Roberts
Cultural & Related,Culture & Heritage,Community and Leisure ,Supplies & Services,"Equipment, Furniture & Materials",Purchase Equip + Materials,11/05/2017,213692,759.29,Options Flooring Ltd
Environmental & Regulatory,Street Cleansing (not chargeable to Highways),Environmental,Transport Related Expenditure,Direct Transport Costs,Repair Materials,18/05/2017,214192,759.75,Johnston Sweepers Ltd
Central Services to the Public,Management & Support Services,Revenues,Supplies & Services,"Equipment, Furniture & Materials",Equipment Lease Rentals,11/05/2017,213840,785.7,Pitney Bowes Finance Ltd
External Trading Accounts,Business Parks,Estates and Economic Development ,Supplies & Services,"Printing, Stationery & General Office Expenses",Postage Costs,04/05/2017,213081,787,Royal Mail
Cultural & Related,Culture & Heritage,Estates and Economic Development ,Premises related Expenditure,Repairs Alterations & Maintenance of Buildings,Planned Maintenance - Non Est,18/05/2017,214050,395,Movable Wall Tech Limited
Cultural & Related,Culture & Heritage,Estates and Economic Development ,Premises related Expenditure,Repairs Alterations & Maintenance of Buildings,Planned Maintenance - Non Est,18/05/2017,214050,395,Movable Wall Tech Limited
"Highways, Roads & Transport",Parking Services,Plan Pol & Transport,Supplies & Services,Services,Professional Fees,18/05/2017,213409,955.6,Patrol
Planning & Development,Community Development,Community and Leisure ,Supplies & Services,Grants & Subscriptions,Grants,03/05/2017,213433,960,Romsey Community School Limited
Cultural & Related,Culture & Heritage,Community and Leisure ,Supplies & Services,Miscellaneous Expenses,Booking Of Acts,04/05/2017,213283,823.66,Honalee Media
Planning & Development,Development Control,Planning & Building,Supplies & Services,"Printing, Stationery & General Office Expenses",Stationery,25/05/2017,213493,329.83,Lyreco Uk Ltd
Planning & Development,Development Control,Planning & Building,Supplies & Services,"Printing, Stationery & General Office Expenses",Print Consumables,25/05/2017,213493,495.66,Lyreco Uk Ltd
Planning & Development,Community Development,Community and Leisure ,Supplies & Services,Grants & Subscriptions,Grants,10/05/2017,213852,"1,000.00",Romsey Primary School & Nursery
Planning & Development,Community Development,Community and Leisure ,Supplies & Services,Grants & Subscriptions,Grants,10/05/2017,213853,"1,000.00",Romsey Abbey Pcc
Planning & Development,Community Development,Community and Leisure ,Supplies & Services,Grants & Subscriptions,Grants,11/05/2017,213880,"1,000.00",Andover Town Council
Planning & Development,Community Development,Community and Leisure ,Supplies & Services,Grants & Subscriptions,Grants,24/05/2017,214875,"1,000.00",Vigo Primary School
Environmental & Regulatory,Waste management,Environmental,Supplies & Services,"Equipment, Furniture & Materials",Purchase Equip + Materials,25/05/2017,215034,841.62,Cromwell Polythene Ltd
Central Services to the Public,Management & Support Services,Estates and Economic Development ,Supplies & Services,Communications & Computing,Telephone Tracking System,25/05/2017,214441,60,Ctrack Uk Limited
Environmental & Regulatory,Regulatory Services,Estates and Economic Development ,Supplies & Services,Communications & Computing,Telephone Tracking System,25/05/2017,214441,20,Ctrack Uk Limited
Cultural & Related,Open Spaces,Environmental,Supplies & Services,Communications & Computing,Telephone Tracking System,25/05/2017,214441,280,Ctrack Uk Limited
Environmental & Regulatory,Street Cleansing (not chargeable to Highways),Environmental,Supplies & Services,Communications & Computing,Telephone Tracking System,25/05/2017,214441,230,Ctrack Uk Limited
Environmental & Regulatory,Waste management,Environmental,Supplies & Services,Communications & Computing,Telephone Tracking System,25/05/2017,214441,210,Ctrack Uk Limited
Environmental & Regulatory,Waste management,Environmental,Supplies & Services,Communications & Computing,Telephone Tracking System,25/05/2017,214441,20,Ctrack Uk Limited
Central Services to the Public,Management & Support Services,Environmental,Supplies & Services,Communications & Computing,Telephone Tracking System,25/05/2017,214441,30,Ctrack Uk Limited
Environmental & Regulatory,Street Cleansing (not chargeable to Highways),Environmental,Supplies & Services,"Equipment, Furniture & Materials",Purchase Equip + Materials,25/05/2017,213497,863,Sweeperhire
Environmental & Regulatory,Regulatory Services,Housing and Environmental Health ,Supplies & Services,Miscellaneous Expenses,Kennel fees,18/05/2017,214055,870,Anton Vets Ltd
Planning & Development,Planning Policy,Plan Pol & Transport,Supplies & Services,Services,Professional Fees,25/05/2017,214417,885,Eastleigh Borough Council
Cultural & Related,Open Spaces,Environmental,Transport Related Expenditure,Direct Transport Costs,Repair Materials,11/05/2017,213739,888.8,Loxston Groundcare Ltd
Central Services to the Public,Management & Support Services,Legal & Democratic,Employees,Indirect Employee Expenses,Temporary Staff,25/05/2017,214709,900,Cognize Consultancy Limited
"Highways, Roads & Transport",Public Transport,Plan Pol & Transport,Third Party Payments,Transport Operators in Respect of Concessionary Fares,Voluntary Orgs Reimbursement,11/05/2017,213892,"1,094.00",Romsey Good Neighbours
Cultural & Related,Culture & Heritage,Community and Leisure ,Third Party Payments,Private contractors,Main Contractor Costs,18/05/2017,214046,920,Austin Foot Ecology
Cultural & Related,Open Spaces,Community and Leisure ,Premises related Expenditure,Grounds Maintenance Costs,Non Contract Tree Works,18/05/2017,212466,922.88,Gristwood & Toms Ltd
Central Services to the Public,Management & Support Services,Finance,Supplies & Services,"Printing, Stationery & General Office Expenses",Postage Costs,04/05/2017,213516,939.8,Whistl Uk Ltd
Central Services to the Public,Local Tax Collection,Revenues,Supplies & Services,"Printing, Stationery & General Office Expenses",External Printing,11/05/2017,213664,732,Hound Envelopes Limited
Housing Services,Housing Benefits ,Revenues,Supplies & Services,"Printing, Stationery & General Office Expenses",External Printing,11/05/2017,213664,226.8,Hound Envelopes Limited
Environmental & Regulatory,Street Cleansing (not chargeable to Highways),Environmental,Supplies & Services,"Equipment, Furniture & Materials",Purchase Equip + Materials,25/05/2017,213417,963.8,Imperial Polythene Products Ltd
Environmental & Regulatory,Waste management,Environmental,Transport Related Expenditure,Direct Transport Costs,Repair Materials,18/05/2017,213756,969.02,Dennis Eagle Ltd
Central Services to the Public,Management & Support Services,Estates and Economic Development ,Supplies & Services,"Equipment, Furniture & Materials",Purchase Materials (Job Cost),18/05/2017,213532,979.44,Bss Group Plc
Central Services to the Public,Management & Support Services,Environmental,Supplies & Services,Grants & Subscriptions,Subscriptions,11/05/2017,213828,982,Freight Transport Association
Central Services to the Public,Management & Support Services,Finance,Supplies & Services,Grants & Subscriptions,Subscriptions,11/05/2017,213813,988.8,Wolters Kluwer (Uk) Limited
Central Services to the Public,Management & Support Services,Revenues,Supplies & Services,Communications & Computing,Software Maintenance,25/05/2017,215040,"1,000.00",Abavus Limited
Cultural & Related,Open Spaces,Environmental,Third Party Payments,Other Establishments,Private Contractors,11/05/2017,213841,"1,221.86",Ivan Gibson Agricultural Contractor
Environmental & Regulatory,Waste management,Environmental,Employees,Indirect Employee Expenses,Agency Staff - Waged Posts,18/05/2017,212552,"1,048.44",Simple Recruitment Services Ltd
Cultural & Related,Culture & Heritage,Community and Leisure ,Supplies & Services,Catering,Non-Contract Catering,04/05/2017,212823,"1,080.66",Carlsberg Uk Ltd
Central Services to the Public,Management & Support Services,Finance,Supplies & Services,"Printing, Stationery & General Office Expenses",Postage Costs,11/05/2017,213735,"1,083.12",Whistl Uk Ltd
Central Services to the Public,Management & Support Services,Estates and Economic Development ,Supplies & Services,Services,Professional Fees,18/05/2017,214051,"1,100.00",Gep Environmental Ltd
Central Services to the Public,Management & Support Services,Estates and Economic Development ,Premises related Expenditure,Energy Costs,Gas,25/05/2017,214759,"1,126.53",Total Gas & Power Ltd
Central Services to the Public,Management & Support Services,IT,Supplies & Services,Communications & Computing,Purchase Of Telephones ,04/05/2017,213526,"1,129.25",Nuvola Distribution Ltd
Central Services to the Public,Elections,Legal & Democratic,Premises related Expenditure,Rents,Premises Hire,25/05/2017,214700,"1,372.20",Wernick Event Hire Ltd
Central Services to the Public,Elections,Legal & Democratic,Supplies & Services,"Printing, Stationery & General Office Expenses",Postage Costs,11/05/2017,213843,538.48,Royal Mail
Cultural & Related,Open Spaces,Environmental,Third Party Payments,Other Establishments,Private Contractors,04/05/2017,213491,"1,384.84",Ivan Gibson Agricultural Contractor
Cultural & Related,Open Spaces,Community and Leisure ,Premises related Expenditure,Grounds Maintenance Costs,Gm - Additional Works,04/05/2017,213404,"1,162.79",Personal data - Data Protection Act 1998
Central Services to the Public,Elections,Legal & Democratic,Premises related Expenditure,Rents,Premises Hire,25/05/2017,214701,"1,398.60",Wernick Event Hire Ltd
Environmental & Regulatory,Regulatory Services,Housing and Environmental Health ,Supplies & Services,Grants and subscriptions,Capital Grants,25/05/2017,215027,"1,401.08",Prism Medical Uk
Environmental & Regulatory,Street Cleansing (not chargeable to Highways),Environmental,Supplies & Services,"Equipment, Furniture & Materials",Purchase Equip + Materials,25/05/2017,214881,"1,220.00",Jrb Enterpise Ltd
Cultural & Related,Open Spaces,Environmental,Employees,Indirect Employee Expenses,Agency Staff - Waged Posts,11/05/2017,213084,765.9,365 Supply Ltd
Environmental & Regulatory,Street Cleansing (not chargeable to Highways),Environmental,Employees,Indirect Employee Expenses,Agency Staff - Waged Posts,11/05/2017,213084,460.58,365 Supply Ltd
Planning & Development,Development Control,Planning & Building,Supplies & Services,Miscellaneous Expenses,Planning Appeal Costs,11/05/2017,213666,"1,229.00",Allen Planning Ltd
Central Services to the Public,Elections,Legal & Democratic,Premises related Expenditure,Rents,Premises Hire,25/05/2017,214253,"1,486.80",Wernick Event Hire Ltd
Cultural & Related,Recreation & Sport,Community and Leisure ,Supplies & Services,"Equipment, Furniture & Materials",Purchase Equip + Materials,11/05/2017,213697,"1,250.00",Ryan Leisure Activities Ltd
"Highways, Roads & Transport",Parking Services,Plan Pol & Transport,Supplies & Services,Services,Legal Fees,25/05/2017,215017,"1,500.00",Hmcs
Cultural & Related,Culture & Heritage,Estates and Economic Development ,Premises related Expenditure,Repairs Alterations & Maintenance of Buildings,Planned Maintenance - Non Est,18/05/2017,214267,201.5,Temple Lifts Ltd
Cultural & Related,Culture & Heritage,Estates and Economic Development ,Premises related Expenditure,Repairs Alterations & Maintenance of Buildings,Planned Maintenance - Non Est,18/05/2017,214267,19.5,Temple Lifts Ltd
Central Services to the Public,Management & Support Services,Estates and Economic Development ,Premises related Expenditure,Repairs Alterations & Maintenance of Buildings,Planned Maintenance - Non Est,18/05/2017,214267,806,Temple Lifts Ltd
Cultural & Related,Recreation & Sport,Community and Leisure ,Premises related Expenditure,Repairs Alterations & Maintenance of Buildings,Planned Maintenance - Non Est,18/05/2017,214267,201.5,Temple Lifts Ltd
Cultural & Related,Culture & Heritage,Community and Leisure ,Premises related Expenditure,Repairs Alterations & Maintenance of Buildings,Planned Maintenance - Non Est,18/05/2017,214267,68.92,Temple Lifts Ltd
"Highways, Roads & Transport",Parking Services,Plan Pol & Transport,Supplies & Services,Services,Training Courses,18/05/2017,213484,"1,300.00",Trace Debt Recovery Uk Ltd
Central Services to the Public,Elections,Legal & Democratic,Premises related Expenditure,Rents,Premises Hire,25/05/2017,215031,"1,572.60",Wernick Event Hire Ltd
Cultural & Related,Recreation & Sport,Community and Leisure ,Premises related Expenditure,Grounds Maintenance Costs,Gm - Additional Works,04/05/2017,213408,"1,320.00",Fernden Construction (Winchester) Ltd
Environmental & Regulatory,Street Cleansing (not chargeable to Highways),Environmental,Employees,Indirect Employee Expenses,Agency Staff - Waged Posts,11/05/2017,212991,"1,324.80",365 Supply Ltd
Central Services to the Public,Local Tax Collection,Revenues,Supplies & Services,"Printing, Stationery & General Office Expenses",Postage Costs,11/05/2017,213529,"1,333.36",Royal Mail
Central Services to the Public,Management & Support Services,Legal & Democratic,Employees,Indirect Employee Expenses,Temporary Staff,25/05/2017,211905,"1,350.00",Cognize Consultancy Limited
Central Services to the Public,Management & Support Services,Legal & Democratic,Employees,Indirect Employee Expenses,Temporary Staff,25/05/2017,214705,"1,350.00",Cognize Consultancy Limited
Central Services to the Public,Management & Support Services,Legal & Democratic,Employees,Indirect Employee Expenses,Temporary Staff,25/05/2017,214706,"1,350.00",Cognize Consultancy Limited
Central Services to the Public,Management & Support Services,Legal & Democratic,Employees,Indirect Employee Expenses,Temporary Staff,25/05/2017,214708,"1,350.00",Cognize Consultancy Limited
Central Services to the Public,Management & Support Services,Legal & Democratic,Employees,Indirect Employee Expenses,Temporary Staff,25/05/2017,214710,"1,350.00",Cognize Consultancy Limited
Central Services to the Public,Management & Support Services,Legal & Democratic,Employees,Indirect Employee Expenses,Temporary Staff,25/05/2017,215044,"1,350.00",Cognize Consultancy Limited
Central Services to the Public,Elections,Legal & Democratic,Premises related Expenditure,Rents,Premises Hire,25/05/2017,214702,"1,621.80",Wernick Event Hire Ltd
Cultural & Related,Culture & Heritage,Community and Leisure ,Supplies & Services,Miscellaneous Expenses,Booking Of Acts,25/05/2017,214281,"1,378.66",Personal data - Data Protection Act 1998
Central Services to the Public,Elections,Legal & Democratic,Supplies & Services,"Printing, Stationery & General Office Expenses",Postage Costs,11/05/2017,213844,"1,679.59",Royal Mail
Central Services to the Public,Local Tax Collection,Revenues,Supplies & Services,Miscellaneous Expenses,All Pay Fees,11/05/2017,213730,"1,439.48",Allpay Limited
Cultural & Related,Open Spaces,Community and Leisure ,Premises related Expenditure,Grounds Maintenance Costs,Gm - Additional Works,25/05/2017,214774,"1,451.00",Intratest Ltd
Planning & Development,Development Control,Planning & Building,Employees,Indirect Employee Expenses,Temporary Staff,10/05/2017,213420,"1,883.60",T P Marsh
Planning & Development,Economic Development,Estates and Economic Development ,Supplies & Services,Services,Professional Fees,11/05/2017,213688,"1,575.00",Midland Survey Ltd
Planning & Development,Development Control,Planning & Building,Employees,Indirect Employee Expenses,Temporary Staff,25/05/2017,213724,"1,900.00",Hampshire Planning Limited
Planning & Development,Community Development,Community and Leisure ,Supplies & Services,Grants & Subscriptions,Grants,25/05/2017,215023,"1,912.00",Andover Town Council
Environmental & Regulatory,Regulatory Services,Housing and Environmental Health ,Employees,Indirect Employee Expenses,Temporary Staff,18/05/2017,214274,"1,598.40",Crystal Umbrella
Central Services to the Public,Management & Support Services,Estates and Economic Development ,Third Party Payments,Other Establishments,Contract Catering,18/05/2017,213759,"1,651.07",Edwards And Ward Ltd
Environmental & Regulatory,Regulatory Services,Housing and Environmental Health ,Supplies & Services,Miscellaneous Expenses,Kennel fees,18/05/2017,213761,"1,652.40",Newbury Lodge Kennels
Environmental & Regulatory,Waste management,Environmental,Employees,Indirect Employee Expenses,Agency Staff - Waged Posts,18/05/2017,213082,"1,685.07",Simple Recruitment Services Ltd
Central Services to the Public,Management & Support Services,Environmental,Transport Related Expenditure,Direct Transport Costs,Diesel,04/05/2017,213400,"1,726.26",Hall Fuels
Environmental & Regulatory,Regulatory Services,Estates and Economic Development ,Premises related Expenditure,Repairs Alterations & Maintenance of Buildings,Planned Maintenance - Non Est,25/05/2017,214424,"1,400.00",Wallgate Ltd
Cultural & Related,Open Spaces,Community and Leisure ,Premises related Expenditure,Repairs Alterations & Maintenance of Buildings,Planned Maintenance - Non Est,25/05/2017,214424,350,Wallgate Ltd
Cultural & Related,Open Spaces,Environmental,Employees,Indirect Employee Expenses,Agency Staff - Waged Posts,18/05/2017,214216,610.66,365 Supply Ltd
Environmental & Regulatory,Street Cleansing (not chargeable to Highways),Environmental,Employees,Indirect Employee Expenses,Agency Staff - Waged Posts,18/05/2017,214216,"1,148.87",365 Supply Ltd
Central Services,Corporate & Democratic Core,Corporate & Democratic,Supplies & Services,Catering,Catering,18/05/2017,214261,"2,167.00",Melting Moments
Central Services to the Public,Management & Support Services,Finance,Supplies & Services,"Printing, Stationery & General Office Expenses",Postage Costs,25/05/2017,214451,"1,835.98",Whistl Uk Ltd
"Highways, Roads & Transport",Open Spaces,Community and Leisure ,Third Party Payments,Private contractors,Main Contractor Costs,04/05/2017,212988,"1,293.50",Hags-Smp Ltd
Cultural & Related,Open Spaces,Community and Leisure ,Premises related Expenditure,Repairs Alterations & Maintenance of Buildings,Estates premises costs - AMP,04/05/2017,212988,557.28,Hags-Smp Ltd
Central Services to the Public,Management & Support Services,Environmental,Transport Related Expenditure,Direct Transport Costs,Diesel,18/05/2017,214189,"1,852.00",Hall Fuels
Cultural & Related,Recreation & Sport,Community and Leisure ,Premises related Expenditure,Cleaning and domestic supplies,Cleaning Materials-Purchases,25/05/2017,214770,"1,862.78",Gripdeck Uk Llp
Cultural & Related,Culture & Heritage,Community and Leisure ,Supplies & Services,"Printing, Stationery & General Office Expenses",Licences / Affiliation Fees,25/05/2017,214749,"1,881.02",Performing Right Society Ltd
Environmental & Regulatory,Street Cleansing (not chargeable to Highways),Environmental,Supplies & Services,"Equipment, Furniture & Materials",Purchase Equip + Materials,25/05/2017,214775,"1,968.00",Earth Anchors Ltd
Planning & Development,Planning Policy,Plan Pol & Transport,Supplies & Services,Services,Professional Fees,11/05/2017,213693,"1,971.50",Hampshire County Council
Environmental & Regulatory,Regulatory Services,Housing and Environmental Health ,Transport Related Expenditure,Contract Hire and Operating Leases,Officer lease cars,04/05/2017,213325,"2,374.60",Inchcape Fleet Solutions Ltd
Central Services to the Public,Management & Support Services,Finance,Supplies & Services,"Printing, Stationery & General Office Expenses",Postage Costs,04/05/2017,213263,"2,004.22",Whistl Uk Ltd
Central Services to the Public,Management & Support Services,IT,Supplies & Services,Communications & Computing,Computer Software,18/05/2017,213837,"2,085.00",Voodoo Technology Ltd
Cultural & Related,Culture & Heritage,Community and Leisure ,Supplies & Services,Miscellaneous Expenses,Booking Of Acts,18/05/2017,213833,"2,104.37",Ballet Theatre Uk
Central Services to the Public,Management & Support Services,Estates and Economic Development ,Premises related Expenditure,Repairs Alterations & Maintenance of Buildings,Estates premises costs - AMP,04/05/2017,213530,"2,161.24",Options Flooring Ltd
Environmental & Regulatory,Waste management,Environmental,Transport Related Expenditure,Direct Transport Costs,Repair Materials,18/05/2017,213773,203.77,Dennis Eagle Ltd
Central Services to the Public,Management & Support Services,Environmental,Transport Related Expenditure,Direct Transport Costs,Repair Materials,18/05/2017,213773,"1,992.56",Dennis Eagle Ltd
Environmental & Regulatory,Regulatory Services,Housing and Environmental Health ,Supplies & Services,Grants and subscriptions,Capital Grants,17/05/2017,214161,"2,643.00",Stannah Lift Services Ltd
Central Services to the Public,Management & Support Services,Estates and Economic Development ,Supplies & Services,"Equipment, Furniture & Materials",Purchase Materials (Job Cost),18/05/2017,214059,766,Cjs Portsmouth Ltd
Central Services to the Public,Management & Support Services,Estates and Economic Development ,Supplies & Services,"Equipment, Furniture & Materials",Purchase Tools,18/05/2017,214060,"2,260.00",Cjs Portsmouth Ltd
Central Services to the Public,Management & Support Services,Estates and Economic Development ,Supplies & Services,Communications & Computing,Hardware Maintenance,18/05/2017,214059,"1,494.00",Cjs Portsmouth Ltd
Cultural & Related,Culture & Heritage,Community and Leisure ,Supplies & Services,Miscellaneous Expenses,Booking Of Acts,11/05/2017,213413,"2,779.34",Personal data - Data Protection Act 1998
Central Services to the Public,Management & Support Services,Environmental,Transport Related Expenditure,Direct Transport Costs,Diesel,25/05/2017,214449,"2,402.23",Hall Fuels
Planning & Development,Economic Development,Estates and Economic Development ,Supplies & Services,Grants & Subscriptions,Grants,11/05/2017,213685,"2,443.80",Heartflood Ltd
Central Services to the Public,Management & Support Services,Estates and Economic Development ,Third Party Payments,Other Establishments,Private Contractors,04/05/2017,213381,"2,479.49",Btu Installation & Maintenance Ltd
Environmental & Regulatory,Waste management,Environmental,Employees,Indirect Employee Expenses,Agency Staff - Waged Posts,18/05/2017,213501,"2,491.59",365 Supply Ltd
Central Services,Corporate & Democratic Core,Corporate & Democratic,Supplies & Services,"Printing, Stationery & General Office Expenses",Conference Costs,25/05/2017,214204,"2,495.00",Hemming Group Limited
Cultural & Related,Culture & Heritage,Community and Leisure ,Premises related Expenditure,Energy Costs,Electricity,18/05/2017,213467,"1,260.59",Sparsholt College Hampshire
Cultural & Related,Culture & Heritage,Community and Leisure ,Premises related Expenditure,Energy Costs,Gas,18/05/2017,213467,"1,087.02",Sparsholt College Hampshire
Cultural & Related,Culture & Heritage,Community and Leisure ,Premises related Expenditure,Water Services,Water And Sewerage Charges,18/05/2017,213467,254.34,Sparsholt College Hampshire
Planning & Development,Planning Policy,Plan Pol & Transport,Supplies & Services,Grants & Subscriptions,Grants,18/05/2017,213277,"3,086.90",Hampshire County Council
Central Services to the Public,Management & Support Services,Estates and Economic Development ,Supplies & Services,Services,Professional Advice,25/05/2017,214208,"2,590.50",Dc Commercial Solicitors
"Highways, Roads & Transport",Highways and roads - maintenance,Plan Pol & Transport,Supplies & Services,"Equipment, Furniture & Materials",Purchase Equip + Materials,04/05/2017,212943,"2,605.63",Signway Supplies (Datchet Ltd)
Cultural & Related,Culture & Heritage,Community and Leisure ,Supplies & Services,Miscellaneous Expenses,Booking Of Acts,04/05/2017,213405,"2,628.66",Off The Kerb Productions
Central Services to the Public,Elections,Legal & Democratic,Supplies & Services,"Printing, Stationery & General Office Expenses",Postage Costs,11/05/2017,213816,"3,256.51",Royal Mail
Cultural & Related,Culture & Heritage,Community and Leisure ,Supplies & Services,Miscellaneous Expenses,Booking Of Acts,11/05/2017,213834,"2,735.34",Johnny Cash Roadshow
Environmental & Regulatory,Waste management,Environmental,Employees,Indirect Employee Expenses,Agency Staff - Waged Posts,18/05/2017,213083,"2,740.38",365 Supply Ltd
Central Services to the Public,Management & Support Services,Environmental,Transport Related Expenditure,Direct Transport Costs,Diesel,04/05/2017,213410,"2,821.82",Hall Fuels
Environmental & Regulatory,Waste management,Environmental,Supplies & Services,Grants & Subscriptions,Subscriptions,25/05/2017,213770,"3,622.19",Hampshire County Council
Cultural & Related,Culture & Heritage,Community and Leisure ,Supplies & Services,Miscellaneous Expenses,Booking Of Acts,18/05/2017,214282,"3,118.66",Jethro Enterprises Ltd
Housing Services,Housing Benefits ,Revenues,Supplies & Services,Communications & Computing,Software Maintenance,18/05/2017,214213,"3,132.85",Northgate Public Services Uk Ltd
Central Services to the Public,Management & Support Services,IT,Supplies & Services,Communications & Computing,Software Maintenance,25/05/2017,214699,"3,240.00",Richmond Systems
Central Services to the Public,Management & Support Services,Environmental,Transport Related Expenditure,Direct Transport Costs,Diesel,18/05/2017,214183,"3,241.00",Hall Fuels
Environmental & Regulatory,Regulatory Services,Housing and Environmental Health ,Employees,Indirect Employee Expenses,Temporary Staff,04/05/2017,213492,"3,363.75",Crystal Umbrella
Central Services to the Public,Local Land Charges,Legal & Democratic,Supplies & Services,Miscellaneous Expenses,Land Charges Fees,18/05/2017,214053,"3,382.50",Hampshire County Council
Environmental & Regulatory,Regulatory Services,Housing and Environmental Health ,Supplies & Services,Grants and subscriptions,Capital Grants,11/05/2017,213879,"4,078.43",Personal data - Data Protection Act 1998
Cultural & Related,Culture & Heritage,Community and Leisure ,Supplies & Services,Communications & Computing,Computer Software,18/05/2017,213750,"3,437.31",Tickets.Com Ltd
Environmental & Regulatory,Waste management,Environmental,Supplies & Services,"Equipment, Furniture & Materials",Purchase Equip + Materials,11/05/2017,213416,"3,560.00",Ssi Schaefer Ltd
Central Services to the Public,Management & Support Services,Environmental,Transport Related Expenditure,Direct Transport Costs,Diesel,11/05/2017,213819,"3,638.85",Hall Fuels
Environmental & Regulatory,Regulatory Services,Estates and Economic Development ,Supplies & Services,Miscellaneous Expenses,Security Services,11/05/2017,213525,"3,685.00",Dark Knight Security Ltd
Central Services to the Public,Management & Support Services,IT,Supplies & Services,Communications & Computing,Computer Software,04/05/2017,213517,"3,765.00",Phoenix Software Ltd
Central Services to the Public,Management & Support Services,Environmental,Transport Related Expenditure,Direct Transport Costs,Diesel,04/05/2017,213392,"3,773.61",Hall Fuels
Central Services to the Public,Management & Support Services,Environmental,Transport Related Expenditure,Direct Transport Costs,Diesel,04/05/2017,213395,"3,834.00",Hall Fuels
Environmental & Regulatory,Regulatory Services,Estates and Economic Development ,Third Party Payments,Other Establishments,Private Contractors,11/05/2017,213499,"3,870.75",Wetton Cleaning Services Ltd
Environmental & Regulatory,Regulatory Services,Housing and Environmental Health ,Supplies & Services,Grants and subscriptions,Capital Grants,25/05/2017,215026,"4,650.35",Northfield Property Solutions Limited
Central Services to the Public,Management & Support Services,Estates and Economic Development ,Premises related Expenditure,Repairs Alterations & Maintenance of Buildings,Estates premises costs - AMP,18/05/2017,214264,"3,910.97",Andover Glass Works Ltd
Central Services to the Public,Management & Support Services,Chief Executive's,Transport Related Expenditure,Contract Hire and Operating Leases,Officer lease cars,04/05/2017,213326,"4,823.11",Inchcape Fleet Solutions Ltd
Environmental & Regulatory,Regulatory Services,Housing and Environmental Health ,Supplies & Services,Grants and subscriptions,Capital Grants,25/05/2017,215025,"4,833.23",J D Codd Ltd
Environmental & Regulatory,Regulatory Services,Housing and Environmental Health ,Supplies & Services,Grants and subscriptions,Capital Grants,18/05/2017,214432,"4,895.05",Golden Lane Housing Ltd
Central Services to the Public,Management & Support Services,Environmental,Transport Related Expenditure,Direct Transport Costs,Diesel,11/05/2017,213820,"4,226.85",Hall Fuels
Central Services to the Public,Management & Support Services,Estates and Economic Development ,Third Party Payments,Other Establishments,Private Contractors,04/05/2017,213071,"4,493.00",Spheretech Ltd
Central Services to the Public,Management & Support Services,Environmental,Transport Related Expenditure,Direct Transport Costs,Diesel,25/05/2017,214735,"4,560.00",Hall Fuels
Central Services to the Public,Management & Support Services,Finance,Supplies & Services,"Printing, Stationery & General Office Expenses",Central Postage Allocation,11/05/2017,213771,"5,260.70",Pitney Bowes Limited
Central Services to the Public,Management & Support Services,Community and Leisure ,Transport Related Expenditure,Contract Hire and Operating Leases,Officer lease cars,11/05/2017,213784,"5,573.23",Alphabet (Gb) Ltd
External Trading Accounts,Property Investments,Estates and Economic Development ,Supplies & Services,Services,Professional Fees,04/05/2017,213389,"4,850.00",Real Estate Strategies Ltd
Environmental & Regulatory,Waste management,Environmental,Supplies & Services,Grants & Subscriptions,Subscriptions,25/05/2017,214880,"5,894.00",Hampshire County Council
Cultural & Related,Recreation & Sport,Community and Leisure ,Supplies & Services,Services,Professional Fees,18/05/2017,214038,"4,920.00",Watts Group Ltd
Central Services to the Public,Management & Support Services,Estates and Economic Development ,Third Party Payments,Private contractors,Main Contractor Costs,11/05/2017,213537,"4,961.70",Carpenter Oak & Woodland Co. Ltd
Cultural & Related,Recreation & Sport,Community and Leisure ,Supplies & Services,Services,Professional Fees,18/05/2017,213803,"5,000.00",Rpt Consulting Ltd
Cultural & Related,Recreation & Sport,Community and Leisure ,Supplies & Services,Grants and subscriptions,Capital Grants,11/05/2017,213878,"6,250.00",Andover Bmx Club
Environmental & Regulatory,Regulatory Services,Housing and Environmental Health ,Transport Related Expenditure,Direct Transport Costs,Tyres,11/05/2017,213743,8.68,Ats Euromaster Limited
Environmental & Regulatory,Waste management,Environmental,Transport Related Expenditure,Direct Transport Costs,Tyres,11/05/2017,213743,"3,529.64",Ats Euromaster Limited
Central Services to the Public,Management & Support Services,Environmental,Transport Related Expenditure,Direct Transport Costs,Repair Materials,11/05/2017,213743,"1,741.48",Ats Euromaster Limited
Cultural & Related,Recreation & Sport,Estates and Economic Development ,Premises related Expenditure,Energy Costs,Electricity,04/05/2017,212171,97.41,Hampshire County Council
Cultural & Related,Open Spaces,Community and Leisure ,Premises related Expenditure,Energy Costs,Electricity,04/05/2017,212171,219.19,Hampshire County Council
Cultural & Related,Culture & Heritage,Community and Leisure ,Premises related Expenditure,Energy Costs,Electricity,04/05/2017,212171,166.04,Hampshire County Council
"Highways, Roads & Transport",Parking Services,Plan Pol & Transport,Premises related Expenditure,Energy Costs,Electricity,04/05/2017,212171,"5,790.14",Hampshire County Council
Central Services to the Public,Management & Support Services,IT,Supplies & Services,Services,Project Consultancy - Systems,04/05/2017,213314,"6,375.00",Blue Chip
Environmental & Regulatory,Regulatory Services,Housing and Environmental Health ,Supplies & Services,Grants and subscriptions,Capital Grants,18/05/2017,214431,"8,512.08",Golden Lane Housing Ltd
Cultural & Related,Recreation & Sport,Community and Leisure ,Supplies & Services,Services,Professional Fees,04/05/2017,209652,"7,489.20",Blake Morgan Llp
Central Services to the Public,Elections,Legal & Democratic,Supplies & Services,"Printing, Stationery & General Office Expenses",Postage Costs,25/05/2017,214453,"10,071.36",Financial Data Management Plc
Central Services,Corporate & Democratic Core,Corporate & Democratic,Supplies & Services,Communications & Computing,Software Maintenance,18/05/2017,213732,"10,000.00",Web Labs Ltd
Cultural & Related,Recreation & Sport,Community and Leisure ,Supplies & Services,Services,Professional Fees,18/05/2017,214039,"10,287.50",Watts Group Ltd
External Trading Accounts,Property Investments,Estates and Economic Development ,Third Party Payments,Private contractors,Main Contractor Costs,11/05/2017,213910,"14,000.00",Dentons Ukmea Llp
Central Services to the Public,Management & Support Services,Plan Pol & Transport,Premises related Expenditure,Repairs Alterations & Maintenance of Buildings,General Repairs,04/05/2017,212939,"14,180.43",Caroway Building & Civil Engineering
Cultural & Related,Recreation & Sport,Community and Leisure ,Supplies & Services,Services,Professional Fees,04/05/2017,213500,"15,017.91",Blake Morgan Llp
Central Services to the Public,Management & Support Services,Estates and Economic Development ,Third Party Payments,Private contractors,Main Contractor Costs,04/05/2017,213087,"15,989.10",Temple Lifts Ltd
Central Services to the Public,Management & Support Services,Estates and Economic Development ,Third Party Payments,Private contractors,Main Contractor Costs,04/05/2017,213265,"15,989.10",Temple Lifts Ltd
Central Services,Corporate & Democratic Core,Corporate & Democratic,Supplies & Services,Miscellaneous Expenses,External Audit Fees,25/05/2017,213667,"16,711.00",Ernst & Young Llp
Cultural & Related,Recreation & Sport,Community and Leisure ,Supplies & Services,Services,Professional Fees,04/05/2017,213385,"16,809.20",Blake Morgan Llp
Cultural & Related,Recreation & Sport,Community and Leisure ,Supplies & Services,Services,Professional Fees,04/05/2017,213498,"17,944.10",Blake Morgan Llp
Cultural & Related,Recreation & Sport,Community and Leisure ,Supplies & Services,Services,Professional Fees,04/05/2017,213386,"18,811.91",Blake Morgan Llp
Central Services to the Public,Management & Support Services,Environmental,Transport Related Expenditure,Direct Transport Costs,Vehicles and Plant,18/05/2017,214176,"18,825.00",Teletrac Navman (Uk) Ltd
Cultural & Related,Culture & Heritage,Community and Leisure ,Supplies & Services,Grants & Subscriptions,Grants,04/05/2017,213278,"23,185.00",King Johns House & Tudor Cottage Trust Ltd
Cultural & Related,Recreation & Sport,Community and Leisure ,Supplies & Services,Services,Professional Fees,18/05/2017,214219,"22,700.00",Watts Group Ltd
Cultural & Related,Open Spaces,Community and Leisure ,Premises related Expenditure,Grounds Maintenance Costs,Non Contract Tree Works,18/05/2017,212464,"25,032.68",Gristwood & Toms Ltd
Central Services to the Public,Management & Support Services,Estates and Economic Development ,Supplies & Services,Services,Professional Fees,04/05/2017,212997,"31,743.99",Kier Property Developments Ltd.
Central Services to the Public,Management & Support Services,Revenues,Supplies & Services,Communications & Computing,Software Maintenance,04/05/2017,212958,"35,212.50",Abavus Limited
Planning & Development,Community Development,Community and Leisure ,Supplies & Services,Grants & Subscriptions,Grants,11/05/2017,213877,"55,122.63",Test Valley Cab
Central Services to the Public,Management & Support Services,Estates and Economic Development ,Premises related Expenditure,Repairs Alterations & Maintenance of Buildings,Estates premises costs - AMP,25/05/2017,214258,"47,543.70",C & W Industrial Roofing Ltd
External Trading Accounts,Business Parks,Estates and Economic Development ,Third Party Payments,Private contractors,Main Contractor Costs,18/05/2017,214278,"426,291.95",Kier Property Developments Ltd.
